fUST/lending_fUST_20240226
["ID","MTS","AMOUNT","RATE_DAILY","PERIOD"]
[315192622,1708919445182,-500.0,0.00019452,2]
[315192623,1708919445191,-500.0,0.00019452,2]
[315192624,1708919445201,-2405.23,0.00019452,2]
[315192625,1708919445210,-643.67,0.00019452,2]
[315192626,1708919445221,-3074.48,0.00019452,2]
[315192627,1708919445232,-500.0,0.00019452,2]
[315192628,1708919445241,-501.17320826,0.00019452,2]
[315192629,1708919445250,-500.0,0.00019452,2]
[315192630,1708919445259,-500.0,0.00019452,2]
[315192631,1708919445269,-500.0,0.00019452,2]
[315192632,1708919445278,-3496.35,0.00019452,2]
[315192633,1708919445287,-500.0,0.00019452,2]
[315192634,1708919445297,-500.0,0.00019452,2]
[315192635,1708919445307,-500.0,0.00019452,2]
[315192636,1708919445316,-4348.38,0.00019452,2]
[315192637,1708919445325,-501.11194188,0.00019452,2]
[315192638,1708919445334,-22902.69,0.00019452,2]
[315192639,1708919445343,-1541.99,0.00019452,2]
[315192640,1708919445352,-3109.93,0.00019452,2]
[315192641,1708919445361,-500.0,0.00019452,2]
[315192642,1708919445370,-1270.54,0.00019452,2]
[315192643,1708919445379,-500.0,0.00019452,2]
[315192644,1708919445388,-421.15243757,0.00019452,2]
[315192645,1708919445397,-500.0,0.00019452,2]
[315192646,1708919445405,-1654.62,0.00019452,2]
[315192647,1708919445414,-500.0,0.00019452,2]
[315192648,1708919445423,-500.0,0.00019452,2]
[315192649,1708919445431,-500.0,0.00019452,2]
[315192650,1708919445440,-500.0,0.00019452,2]
[315192651,1708919445450,-500.0,0.00019452,2]
[315192652,1708919445460,-2130.39,0.00019452,2]
[315192653,1708919445469,-500.0,0.00019452,2]
[315192654,1708919445479,-640.38620748,0.00019452,2]
[315192655,1708919445488,-500.0,0.00019452,2]
[315192656,1708919445498,-500.0,0.00019452,2]
[315192657,1708919445508,-500.0,0.00019452,2]
[315192658,1708919445517,-500.0,0.00019452,2]
[315192659,1708919445526,-587.29506689,0.00019452,2]
[315192660,1708919445536,-249.09722205,0.00019452,2]
[315192661,1708919445546,-1590.92,0.00019452,2]
[315192662,1708919445555,-500.0,0.00019452,2]
[315192663,1708919445564,-500.0,0.00019452,2]
[315192664,1708919445574,-7330.41372259,0.00019481,2]
[315192665,1708919445584,-182.85476532,0.00019485,2]
[315192666,1708919445594,-7330.41372259,0.00019492,2]
[315192667,1708919445605,-7330.41372259,0.00019498,2]
[315192668,1708919445613,-182.85476532,0.00019499,2]
[315192669,1708919445622,-182.85476532,0.000195,2]
[315192670,1708919445631,-2908.84509306,0.000196,2]
[315192672,1708919445641,-166.666666,0.00019627,2]
[315192674,1708919445650,-153.0,0.00019644,2]
[315192676,1708919445660,-592.7,0.00019655,2]
[315192678,1708919445669,-592.7,0.00019655,2]
[315192680,1708919445678,-75877.75163095,0.00019656,2]
[315192682,1708919445688,-5529.96122929,0.000197,2]
[315192684,1708919445697,-5529.96122929,0.000197,2]
[315192686,1708919445706,-5529.96122929,0.000197,2]
[315192688,1708919445716,-200.5826354,0.000197,2]
[315192689,1708919445725,-153.0,0.000197,2]
[315192690,1708919445734,-153.0,0.000197,2]
[315192691,1708919445744,-153.0,0.000197,2]
[315192692,1708919445753,-200.3370843,0.000197,2]
[315192693,1708919445762,-153.0,0.000197,2]
[315192694,1708919445771,-153.0,0.000197,2]
[315192695,1708919445781,-153.553935,0.000197,2]
[315192696,1708919445790,-153.0,0.000197,2]
[315192697,1708919445799,-202.2369205,0.000197,2]
[315192698,1708919445808,-153.0,0.000197,2]
[315192699,1708919445817,-153.0,0.000197,2]
[315192700,1708919445826,-153.0,0.000197,2]
[315192701,1708919445836,-200.5826354,0.000197,2]
[315192702,1708919445845,-153.0,0.000197,2]
[315192703,1708919445854,-153.0,0.000197,2]
[315192704,1708919445863,-200.5826354,0.000197,2]
[315192705,1708919445872,-153.0,0.000197,2]
[315192706,1708919445880,-153.0,0.000197,2]
[315192707,1708919445889,-200.5826354,0.000197,2]
[315192708,1708919445898,-153.0,0.000197,2]
[315192709,1708919445908,-153.0,0.000197,2]
[315192710,1708919445917,-153.0,0.000197,2]
[315192711,1708919445926,-592.7,0.00019724,2]
[315192712,1708919445935,-592.7,0.00019725,2]
[315192713,1708919445944,-592.7,0.00019725,2]
[315192714,1708919445954,-592.7,0.00019725,2]
[315192715,1708919445963,-501.59546841,0.00019726,2]
[315192716,1708919445972,-411.87418666,0.00019726,2]
[315192717,1708919445981,-500.0,0.00019726,2]
[315192718,1708919445991,-1404.94,0.00019726,2]
[315192719,1708919446000,-761.72,0.00019726,2]
[315192720,1708919446010,-500.0,0.00019726,2]
[315192721,1708919446019,-176.66942179,0.00019726,2]
[315192722,1708919446030,-500.0,0.00019726,2]
[315192723,1708919446039,-500.0,0.00019726,2]
[315192724,1708919446131,-500.0,0.00019726,2]
[315192725,1708919446141,-500.0,0.00019726,2]
[315192726,1708919446150,-500.0,0.00019726,2]
[315192727,1708919446160,-500.0,0.00019726,2]
[315192728,1708919446169,-726.3,0.00019726,2]
[315192729,1708919446177,-500.0,0.00019726,2]
[315192730,1708919446187,-500.0,0.00019726,2]
[315192731,1708919446196,-575.46,0.00019726,2]
[315192732,1708919446205,-452.29044727,0.00019726,2]
[315192733,1708919446217,-500.0,0.00019726,2]
[315192734,1708919446229,-500.0,0.00019726,2]
[315192735,1708919446237,-500.0,0.00019726,2]
[315192736,1708919446246,-500.0,0.00019726,2]
[315192737,1708919446256,-500.0,0.00019726,2]
[315192738,1708919446265,-500.0,0.00019726,2]
[315192739,1708919446274,-501.12560342,0.00019726,2]
[315192740,1708919446283,-500.0,0.00019726,2]
[315192741,1708919446293,-500.0,0.00019726,2]
[315192742,1708919446305,-1282.67,0.00019726,2]
[315192743,1708919446314,-500.0,0.00019726,2]
[315192744,1708919446323,-500.0,0.00019726,2]
[315192745,1708919446332,-500.0,0.00019726,2]
[315192746,1708919446341,-500.0,0.00019726,2]
[315192747,1708919446350,-504.61327759,0.00019726,2]
[315192748,1708919446359,-2206.71,0.00019726,2]
[315192749,1708919446369,-500.0,0.00019726,2]
[315192750,1708919446378,-500.0,0.00019726,2]
[315192751,1708919446387,-500.0,0.00019726,2]
[315192752,1708919446396,-1713.17,0.00019726,2]
[315192753,1708919446405,-500.0,0.00019726,2]
[315192754,1708919446414,-500.0,0.00019726,2]
[315192755,1708919446423,-501.11759681,0.00019726,2]
[315192756,1708919446433,-500.0,0.00019726,2]
[315192757,1708919446443,-500.0,0.00019726,2]
[315192758,1708919446452,-1617.06,0.00019726,2]
[315192759,1708919446462,-500.0,0.00019726,2]
[315192760,1708919446471,-500.0,0.00019726,2]
[315192761,1708919446481,-689.58,0.00019726,2]
[315192762,1708919446490,-500.0,0.00019726,2]
[315192763,1708919446499,-565.91942738,0.00019726,2]
[315192764,1708919446508,-500.0,0.00019726,2]
[315192765,1708919446518,-500.0,0.00019726,2]
[315192766,1708919446527,-998.74,0.00019726,2]
[315192767,1708919446536,-440.90678372,0.00019726,2]
[315192768,1708919446545,-503.92602803,0.00019726,2]
[315192769,1708919446554,-501.22568197,0.00019726,2]
[315192770,1708919446563,-500.0,0.00019726,2]
[315192771,1708919446573,-500.0,0.00019726,2]
[315192772,1708919446582,-743.92,0.00019726,2]
[315192773,1708919446592,-500.0,0.00019726,2]
[315192774,1708919446602,-500.0,0.00019726,2]
[315192775,1708919446611,-500.85128667,0.00019726,2]
[315192776,1708919446621,-500.0,0.00019726,2]
[315192777,1708919446630,-500.0,0.00019726,2]
[315192778,1708919446639,-500.0,0.00019726,2]
[315192779,1708919446649,-500.0,0.00019726,2]
[315192780,1708919446658,-500.0,0.00019726,2]
[315192781,1708919446667,-11036.19,0.00019726,2]
[315192782,1708919446677,-926.12,0.00019726,2]
[315192783,1708919446686,-500.0,0.00019726,2]
[315192784,1708919446695,-2871.16,0.00019726,2]
[315192785,1708919446704,-500.0,0.00019726,2]
[315192786,1708919446715,-501.25122817,0.00019726,2]
[315192787,1708919446725,-500.0,0.00019726,2]
[315192788,1708919446734,-500.0,0.00019726,2]
[315192789,1708919446744,-500.0,0.00019726,2]
[315192790,1708919446753,-4175.75,0.00019726,2]
[315192791,1708919446762,-1931.64,0.00019726,2]
[315192792,1708919446771,-2546.44,0.00019726,2]
[315192793,1708919446780,-500.0,0.00019726,2]
[315192794,1708919446789,-500.0,0.00019726,2]
[315192795,1708919446797,-249.10033961,0.00019726,2]
[315192796,1708919446806,-487.01483259,0.00019726,2]
[315192797,1708919446815,-500.0,0.00019726,2]
[315192798,1708919446825,-1000.0,0.00019726,2]
[315192799,1708919446834,-502.0457706,0.00019726,2]
[315192800,1708919446843,-500.0,0.00019726,2]
[315192801,1708919446852,-500.0,0.00019726,2]
[315192802,1708919446861,-500.0,0.00019726,2]
[315192803,1708919446871,-500.0,0.00019726,2]
[315192804,1708919446880,-500.0,0.00019726,2]
[315192805,1708919446890,-500.0,0.00019726,2]
[315192806,1708919446899,-2014.74,0.00019726,2]
[315192807,1708919446908,-2190.26,0.00019726,2]
[315192808,1708919446917,-500.0,0.00019726,2]
[315192809,1708919446926,-625.28,0.00019726,2]
[315192810,1708919446935,-500.0,0.00019726,2]
[315192811,1708919446944,-500.0,0.00019726,2]
[315192812,1708919446952,-500.0,0.00019726,2]
[315192813,1708919446962,-502.06092799,0.00019726,2]
[315192814,1708919446971,-500.0,0.00019726,2]
[315192815,1708919446980,-500.0,0.00019726,2]
[315192816,1708919446989,-501.98549869,0.00019726,2]
[315192817,1708919446998,-500.0,0.00019726,2]
[315192818,1708919447007,-500.0,0.00019726,2]
[315192819,1708919447016,-500.81546176,0.00019726,2]
[315192820,1708919447030,-22783.65,0.00019726,2]
[315192821,1708919447044,-500.0,0.00019726,2]
[315192822,1708919447058,-500.0,0.00019726,2]
[315192823,1708919447070,-500.0,0.00019726,2]
[315192824,1708919447080,-502.73999553,0.00019726,2]
[315192825,1708919447093,-436.52101816,0.00019726,2]
[315192826,1708919447106,-500.0,0.00019726,2]
[315192827,1708919447118,-500.0,0.00019726,2]
[315192828,1708919447132,-503.26279382,0.00019726,2]
[315192829,1708919447145,-500.0,0.00019726,2]
[315192830,1708919447156,-500.0,0.00019726,2]
[315192831,1708919447167,-1778.63,0.00019726,2]
[315192832,1708919447180,-2274.91,0.00019726,2]
[315192833,1708919447193,-507.00886275,0.00019726,2]
[315192834,1708919447205,-500.0,0.00019726,2]
[315192835,1708919447220,-503.24638074,0.00019726,2]
[315192836,1708919447235,-500.0,0.00019726,2]
[315192837,1708919447246,-501.23396073,0.00019726,2]
[315192838,1708919447257,-8250.54,0.00019726,2]
[315192839,1708919447273,-500.0,0.00019726,2]
[315192840,1708919447284,-11233.87,0.00019726,2]
[315192841,1708919447297,-790.89,0.00019726,2]
[315192842,1708919447310,-500.0,0.00019726,2]
[315192843,1708919447320,-500.0,0.00019726,2]
[315192844,1708919447332,-2405.23,0.00019726,2]
[315192845,1708919447345,-643.67,0.00019726,2]
[315192846,1708919447359,-3074.48,0.00019726,2]
[315192847,1708919447371,-500.0,0.00019726,2]
[315192848,1708919447385,-209.81817441,0.00019726,2]
[315192849,1708919447400,-501.76089687,0.00019726,2]
[315192850,1708919447411,-3496.35,0.00019726,2]
[315192851,1708919447421,-500.0,0.00019726,2]
[315192852,1708919447431,-501.16377799,0.00019726,2]
[315192853,1708919447443,-500.0,0.00019726,2]
[315192854,1708919447456,-298.57892265,0.00019726,2]
[315192866,1708920170406,106976.0,0.00015,2]
[315192919,1708920635359,-1600.10761346,0.00017584,2]
[315192921,1708920635369,-502.44170262,0.00017585,2]
[315192923,1708920635378,-691.70350185,0.00017586,2]
[315192924,1708920635387,-653.04920302,0.00017587,2]
[315192926,1708920635396,-264.78655,0.00017594,2]
[315192927,1708920635405,-16123.0953203,0.00017959,2]
[315192928,1708920635415,-294.07085765,0.000189,2]
[315192930,1708920635424,-194.05652051,0.00019078,2]
[315192932,1708920635434,-13118.3210004,0.00019078,2]
[315192934,1708920635443,-670.88,0.00019168,3]
[315192936,1708920635452,-335.44,0.00019168,3]
[315192938,1708920635462,-167.72,0.00019168,3]
[315192940,1708920635471,-503.2,0.00019168,3]
[315192941,1708920635480,-155.89152219,0.00019177,2]
[315192944,1708920635490,-333.69686052,0.00019178,2]
[315192945,1708920635499,-500.0,0.00019178,2]
[315192947,1708920635508,-500.0,0.00019178,2]
[315192948,1708920635518,-549.12685038,0.00019178,2]
[315192949,1708920635528,-399.09330614,0.00019178,2]
[315192950,1708920635538,-181.84943336,0.00019178,2]
[315192951,1708920635547,-759.48,0.00019178,2]
[315192952,1708920635557,-500.0,0.00019178,2]
[315192953,1708920635567,-502.70298707,0.00019178,2]
[315192954,1708920635579,-500.0,0.00019178,2]
[315192955,1708920635589,-500.0,0.00019178,2]
[315192956,1708920635598,-500.0,0.00019178,2]
[315192957,1708920635608,-500.0,0.00019178,2]
[315192958,1708920635617,-500.0,0.00019178,2]
[315192960,1708920635627,-500.0,0.00019178,2]
[315192962,1708920635637,-500.0,0.00019178,2]
[315192964,1708920635646,-439.23108346,0.00019178,2]
[315192967,1708920635658,-500.0,0.00019178,2]
[315192968,1708920635669,-500.0,0.00019178,2]
[315192970,1708920635679,-501.08668541,0.00019178,2]
[315192972,1708920635689,-500.0,0.00019178,2]
[315192974,1708920635699,-605.07512948,0.00019178,2]
[315192976,1708920635708,-500.0,0.00019178,2]
[315192978,1708920635717,-500.0,0.00019178,2]
[315192980,1708920635728,-500.0,0.00019178,2]
[315192982,1708920635737,-500.0,0.00019178,2]
[315192984,1708920635747,-284.39220468,0.00019178,2]
[315192986,1708920635756,-500.0,0.00019178,2]
[315192988,1708920635765,-500.0,0.00019178,2]
[315192990,1708920635775,-500.0,0.00019178,2]
[315192991,1708920635783,-500.0,0.00019178,2]
[315192993,1708920635794,-501.12063121,0.00019178,2]
[315192995,1708920635804,-500.0,0.00019178,2]
[315192997,1708920635814,-1281.73,0.00019178,2]
[315192999,1708920635823,-500.0,0.00019178,2]
[315193001,1708920635832,-500.0,0.00019178,2]
[315193003,1708920635842,-500.0,0.00019178,2]
[315193005,1708920635852,-187.23729119,0.00019178,2]
[315193007,1708920635862,-500.0,0.00019178,2]
[315193009,1708920635872,-500.0,0.00019178,2]
[315193011,1708920635882,-500.0,0.00019178,2]
[315193013,1708920635891,-500.0,0.00019178,2]
[315193015,1708920635901,-500.0,0.00019178,2]
[315193017,1708920635910,-500.0,0.00019178,2]
[315193019,1708920635919,-500.0,0.00019178,2]
[315193021,1708920635929,-500.0,0.00019178,2]
[315193023,1708920635938,-500.51038227,0.00019178,2]
[315193024,1708920635948,-500.0,0.00019178,2]
[315193026,1708920635957,-500.0,0.00019178,2]
[315193028,1708920635966,-500.0,0.00019178,2]
[315193030,1708920635976,-500.0,0.00019178,2]
[315193032,1708920635985,-154.45640232,0.00019178,2]
[315193034,1708920635998,-345.54359768,0.00019178,2]
[315193036,1708920636007,-120.64361894,0.00019178,2]
[315193056,1708920638194,-379.35638106,0.00019178,2]
[315193057,1708920638204,-53.50009231,0.00019178,2]
[315193058,1708920638215,-446.49990769,0.00019178,2]
[315193059,1708920638225,-500.0,0.00019178,2]
[315193060,1708920638234,-451.87442518,0.00019178,2]
[315193061,1708920638243,-500.0,0.00019178,2]
[315193062,1708920638252,-500.0,0.00019178,2]
[315193063,1708920638261,-500.0,0.00019178,2]
[315193064,1708920638270,-500.0,0.00019178,2]
[315193065,1708920638279,-500.0,0.00019178,2]
[315193066,1708920638288,-500.0,0.00019178,2]
[315193067,1708920638298,-500.0,0.00019178,2]
[315193068,1708920638307,-500.0,0.00019178,2]
[315193069,1708920638316,-500.0,0.00019178,2]
[315193070,1708920638324,-1753.33,0.00019178,2]
[315193071,1708920638333,-500.0,0.00019178,2]
[315193072,1708920638342,-220.42165296,0.00019178,2]
[315193073,1708920638351,-500.0,0.00019178,2]
[315193074,1708920638360,-500.91762408,0.00019178,2]
[315193075,1708920638370,-501.86676046,0.00019178,2]
[315193076,1708920638378,-500.25009152,0.00019178,2]
[315193077,1708920638387,-773.14,0.00019178,2]
[315193078,1708920638396,-500.0,0.00019178,2]
[315193079,1708920638405,-581.42135505,0.00019178,2]
[315193080,1708920638414,-500.0,0.00019178,2]
[315193081,1708920638424,-500.0,0.00019178,2]
[315193082,1708920638433,-501.61062038,0.00019178,2]
[315193083,1708920638442,-500.0,0.00019178,2]
[315193084,1708920638450,-500.0,0.00019178,2]
[315193085,1708920638459,-500.0,0.00019178,2]
[315193086,1708920638469,-500.48866021,0.00019178,2]
[315193087,1708920638593,-502.75767001,0.00019178,2]
[315193088,1708920638602,-501.71371694,0.00019178,2]
[315193089,1708920638611,-500.0,0.00019178,2]
[315193090,1708920638621,-500.0,0.00019178,2]
[315193091,1708920638630,-625.55,0.00019178,2]
[315193092,1708920638639,-500.0,0.00019178,2]
[315193093,1708920638648,-500.0,0.00019178,2]
[315193094,1708920638659,-500.0,0.00019178,2]
[315193095,1708920638667,-601.83460681,0.00019178,2]
[315193096,1708920638677,-500.39582415,0.00019178,2]
[315193097,1708920638686,-500.0,0.00019178,2]
[315193098,1708920638695,-500.0,0.00019178,2]
[315193099,1708920638704,-500.0,0.00019178,2]
[315193100,1708920638713,-500.0,0.00019178,2]
[315193101,1708920638723,-500.0,0.00019178,2]
[315193102,1708920638732,-500.67937489,0.00019178,2]
[315193103,1708920638741,-500.0,0.00019178,2]
[315193104,1708920638751,-500.0,0.00019178,2]
[315193105,1708920638760,-500.0,0.00019178,2]
[315193106,1708920638769,-500.0,0.00019178,2]
[315193107,1708920638778,-500.0,0.00019178,2]
[315193108,1708920638788,-500.0,0.00019178,2]
[315193109,1708920638797,-502.56636527,0.00019178,2]
[315193110,1708920638806,-500.0,0.00019178,2]
[315193111,1708920638815,-502.47764759,0.00019178,2]
[315193112,1708920638825,-500.0,0.00019178,2]
[315193113,1708920638834,-500.0,0.00019178,2]
[315193114,1708920638843,-417.97011128,0.00019178,2]
[315193115,1708920638853,-200.0,0.00019178,2]
[315193116,1708920638864,-500.0,0.00019178,2]
[315193117,1708920638873,-500.0,0.00019178,2]
[315193118,1708920638883,-500.0,0.00019178,2]
[315193119,1708920638892,-527.74951966,0.00019178,2]
[315193120,1708920638901,-500.0,0.00019178,2]
[315193121,1708920638910,-368.55067157,0.00019178,2]
[315193122,1708920638919,-503.11301008,0.00019178,2]
[315193123,1708920638928,-500.0,0.00019178,2]
[315193124,1708920638938,-500.0,0.00019178,2]
[315193125,1708920638946,-177.56440176,0.00019178,2]
[315193126,1708920638956,-500.0,0.00019178,2]
[315193127,1708920638965,-500.0,0.00019178,2]
[315193128,1708920638974,-500.0,0.00019178,2]
[315193129,1708920638983,-500.0,0.00019178,2]
[315193130,1708920638992,-500.0,0.00019178,2]
[315193131,1708920639001,-500.0,0.00019178,2]
[315193132,1708920639011,-614.77234965,0.00019178,2]
[315193133,1708920639019,-625.28,0.00019178,2]
[315193134,1708920639028,-500.0,0.00019178,2]
[315193135,1708920639037,-506.6715186,0.00019178,2]
[315193136,1708920639047,-500.0,0.00019178,2]
[315193137,1708920639056,-500.0,0.00019178,2]
[315193138,1708920639065,-500.0,0.00019178,2]
[315193139,1708920639074,-500.0,0.00019178,2]
[315193140,1708920639084,-500.0,0.00019178,2]
[315193141,1708920639093,-500.0,0.00019178,2]
[315193142,1708920639102,-500.0,0.00019178,2]
[315193143,1708920639111,-500.0,0.00019178,2]
[315193144,1708920639120,-500.0,0.00019178,2]
[315193145,1708920639130,-500.0,0.00019178,2]
[315193146,1708920639139,-500.0,0.00019178,2]
[315193147,1708920639148,-500.0,0.00019178,2]
[315193148,1708920639157,-500.0,0.00019178,2]
[315193149,1708920639166,-500.0,0.00019178,2]
[315193150,1708920639175,-500.0,0.00019178,2]
[315193151,1708920639183,-500.0,0.00019178,2]
[315193152,1708920639193,-500.0,0.00019178,2]
[315193153,1708920639202,-500.76681216,0.00019178,2]
[315193154,1708920639211,-500.0,0.00019178,2]
[315193155,1708920639220,-500.0,0.00019178,2]
[315193156,1708920639229,-500.0,0.00019178,2]
[315193157,1708920639239,-2297.51,0.00019178,2]
[315193158,1708920639249,-501.29341778,0.00019178,2]
[315193159,1708920639257,-500.0,0.00019178,2]
[315193160,1708920639266,-500.0,0.00019178,2]
[315193161,1708920639275,-500.0,0.00019178,2]
[315193162,1708920639284,-359.8403748,0.00019178,2]
[315193163,1708920639292,-500.3462092,0.00019178,2]
[315193164,1708920639301,-501.0884164,0.00019178,2]
[315193165,1708920639310,-234.57397735,0.00019178,2]
[315193166,1708920639319,-500.0,0.00019178,2]
[315193167,1708920639328,-500.0,0.00019178,2]
[315193168,1708920639338,-500.0,0.00019178,2]
[315193169,1708920639346,-500.6043484,0.00019178,2]
[315193170,1708920639355,-1783.95,0.00019178,2]
[315193171,1708920639366,-500.0,0.00019178,2]
[315193172,1708920639375,-500.0,0.00019178,2]
[315193173,1708920639384,-500.0,0.00019178,2]
[315193174,1708920639393,-500.0,0.00019178,2]
[315193175,1708920639401,-500.0,0.00019178,2]
[315193176,1708920639410,-500.0,0.00019178,2]
[315193177,1708920639419,-500.0,0.00019178,2]
[315193178,1708920639429,-500.0,0.00019178,2]
[315193179,1708920639437,-500.0,0.00019178,2]
[315193180,1708920639447,-500.0,0.00019178,2]
[315193181,1708920639456,-500.0,0.00019178,2]
[315193182,1708920639465,-500.58116796,0.00019178,2]
[315193183,1708920639474,-500.0,0.00019178,2]
[315193184,1708920639483,-500.0,0.00019178,2]
[315193185,1708920639492,-647.66354051,0.00019178,2]
[315193186,1708920639501,-500.0,0.00019178,2]
[315193187,1708920639510,-500.0,0.00019178,2]
[315193188,1708920639519,-500.0,0.00019178,2]
[315193189,1708920639529,-500.0,0.00019178,2]
[315193190,1708920639538,-491.43084547,0.00019178,2]
[315193191,1708920639547,-501.13519098,0.00019178,2]
[315193192,1708920639556,-500.0,0.00019178,2]
[315193193,1708920639565,-266.51557641,0.00019178,2]
[315193194,1708920639576,-500.0,0.00019178,2]
[315193195,1708920639586,-500.0,0.00019178,2]
[315193196,1708920639595,-500.0,0.00019178,2]
[315193197,1708920639604,-500.0,0.00019178,2]
[315193198,1708920639613,-1039.45,0.00019178,2]
[315193199,1708920639623,-500.0,0.00019178,2]
[315193200,1708920639632,-242.83946742,0.00019178,2]
[315193201,1708920639641,-151.0,0.00019178,2]
[315193202,1708920639651,-500.0,0.00019178,2]
[315193203,1708920639660,-500.0,0.00019178,2]
[315193204,1708920639670,-500.0,0.00019178,2]
[315193205,1708920639679,-500.0,0.00019178,2]
[315193206,1708920639688,-500.0,0.00019178,2]
[315193207,1708920639698,-500.0,0.00019178,2]
[315193208,1708920639707,-549.7,0.00019178,2]
[315193209,1708920639716,-500.0,0.00019178,2]
[315193210,1708920639724,-500.0,0.00019178,2]
[315193211,1708920639734,-500.0,0.00019178,2]
[315193212,1708920639743,-170.14503892,0.00019178,2]
[315193213,1708920639752,-500.0,0.00019178,2]
[315193214,1708920639761,-500.0,0.00019178,2]
[315193215,1708920639771,-500.0,0.00019178,2]
[315193216,1708920639780,-773.55,0.00019178,2]
[315193217,1708920639789,-205.48522156,0.00019178,2]
[315193218,1708920639798,-500.0,0.00019178,2]
[315193219,1708920639808,-500.0,0.00019178,2]
[315193220,1708920639817,-500.0,0.00019178,2]
[315193221,1708920639826,-500.0,0.00019178,2]
[315193222,1708920639835,-500.0,0.00019178,2]
[315193223,1708920639844,-500.0,0.00019178,2]
[315193224,1708920639854,-500.0,0.00019178,2]
[315193225,1708920639863,-1524.79,0.00019178,2]
[315193226,1708920639872,-1590.92,0.00019178,2]
[315193227,1708920639882,-500.0,0.00019178,2]
[315193228,1708920639891,-500.0,0.00019178,2]
[315193229,1708920639900,-11036.19,0.00019178,2]
[315193230,1708920639910,-500.0,0.00019178,2]
[315193231,1708920639919,-500.0,0.00019178,2]
[315193232,1708920639928,-500.0,0.00019178,2]
[315193233,1708920639945,-965.48,0.00019178,2]
[315193234,1708920639959,-2991.11,0.00019178,2]
[315193235,1708920639968,-4175.75,0.00019178,2]
[315193236,1708920639979,-826.02,0.00019178,2]
[315193237,1708920639988,-500.0,0.00019178,2]
[315193238,1708920639998,-500.0,0.00019178,2]
[315193239,1708920640008,-500.0,0.00019178,2]
[315193240,1708920640017,-500.0,0.00019178,2]
[315193241,1708920640026,-500.0,0.00019178,2]
[315193242,1708920640037,-2012.34,0.00019178,2]
[315193243,1708920640046,-500.0,0.00019178,2]
[315193244,1708920640054,-500.0,0.00019178,2]
[315193245,1708920640064,-477.95314472,0.00019178,2]
[315193246,1708920640073,-500.0,0.00019178,2]
[315193247,1708920640082,-500.0,0.00019178,2]
[315193248,1708920640092,-507.32053121,0.00019178,2]
[315193249,1708920640101,-500.0,0.00019178,2]
[315193250,1708920640111,-506.82130633,0.00019178,2]
[315193251,1708920640121,-1000.0,0.00019178,2]
[315193252,1708920640130,-500.0,0.00019178,2]
[315193253,1708920640139,-500.0,0.00019178,2]
[315193254,1708920640149,-500.0,0.00019178,2]
[315193255,1708920640158,-500.0,0.00019178,2]
[315193256,1708920640167,-2709.02,0.00019178,2]
[315193257,1708920640177,-2190.26,0.00019178,2]
[315193258,1708920640186,-2052.23,0.00019178,2]
[315193259,1708920640195,-543.31285923,0.00019178,2]
[315193260,1708920640205,-500.0,0.00019178,2]
[315193261,1708920640215,-500.0,0.00019178,2]
[315193262,1708920640225,-500.0,0.00019178,2]